bitfinex/quotes_BTCUSD_20220115
["timestamp","ask_amount","ask_price","bid_price","bid_amount"]
[1642250341556,0.01307019,42861.0,42860.0,0.46550398]
[1642250341957,0.01307019,42861.0,42860.0,0.26995684]
[1642250342258,0.01307019,42861.0,42860.0,0.22515684]
[1642250344909,2.18548835,42861.0,42860.0,0.22515684]
[1642250345113,0.48548835,42861.0,42853.0,0.2007]
[1642250345309,0.00807019,42854.0,42853.0,0.2007]
[1642250345508,0.00807019,42854.0,42846.0,0.058323]
[1642250345711,0.00807019,42854.0,42849.0,0.39001168]
[1642250346112,0.00807019,42854.0,42853.0,0.26378463]
[1642250346310,0.00807019,42854.0,42852.0,0.06766]
[1642250346311,0.19789678,42864.0,42860.0,0.28131762]
[1642250346911,0.1,42865.0,42860.0,0.28131762]
[1642250347111,0.1,42865.0,42860.0,0.23671762]
[1642250347553,0.26191062,42864.0,42860.0,0.23671762]
[1642250347954,0.25191062,42864.0,42860.0,0.23671762]
[1642250348554,0.31023463,42864.0,42860.0,0.23671762]
[1642250348754,0.376184,42863.0,42860.0,0.23671762]
[1642250348956,0.31023463,42864.0,42860.0,0.23671762]
[1642250349155,0.376184,42863.0,42860.0,0.0005]
[1642250349554,0.471184,42863.0,42860.0,0.0005]
[1642250349854,0.25191062,42864.0,42860.0,0.0005]
[1642250350460,1.1059,42869.0,42860.0,0.0005]
[1642250350655,0.3124,42870.0,42860.0,0.0005]
[1642250350854,0.3124,42870.0,42861.0,0.33680941]
[1642250351056,0.3124,42870.0,42869.0,0.24327109]
[1642250351305,0.376178,42870.0,42869.0,0.24327109]
[1642250351504,0.71203372,42870.0,42869.0,0.24327109]
[1642250351705,1.51203372,42870.0,42869.0,0.24327109]
[1642250352105,1.51203372,42870.0,42862.0,0.058312]
[1642250352308,0.376178,42869.0,42860.0,0.0005]
[1642250352506,1.13585572,42870.0,42860.0,0.0005]
[1642250352907,0.33122889,42863.0,42860.0,0.0005]
[1642250353108,0.33122889,42863.0,42862.0,0.31670334]
[1642250353704,0.45,42863.0,42862.0,0.31670334]
[1642250354506,0.45,42863.0,42860.0,0.0005]
[1642250354705,0.90597689,42861.0,42860.0,0.0005]
[1642250355158,0.30597689,42861.0,42860.0,0.0005]
[1642250356260,0.05832222,42864.0,42860.0,0.0005]
[1642250356462,0.48893307,42867.0,42860.0,0.0005]
[1642250356661,0.376178,42866.0,42860.0,0.0005]
[1642250356862,2.232,42870.0,42860.0,0.0005]
[1642250357163,0.26530047,42865.0,42857.0,0.26427723]
[1642250357563,0.32362243,42865.0,42857.0,0.32259723]
[1642250357765,0.32362243,42865.0,42857.0,0.26427723]
[1642250357964,0.42362243,42865.0,42857.0,0.26427723]
[1642250359399,0.1,42865.0,42858.0,0.18237172]
[1642250359600,0.2842,42870.0,42857.0,0.26427723]
[1642250360202,0.376178,42869.0,42857.0,0.26427723]
[1642250360403,0.2842,42870.0,42864.0,0.31443695]
[1642250360602,0.376178,42869.0,42864.0,0.31443695]
[1642250360805,2.16354414,42871.0,42864.0,0.31443695]
[1642250361002,0.1,42869.0,42864.0,0.31443695]
[1642250361206,0.376178,42868.0,42858.0,0.116624]
[1642250361402,0.33132294,42862.0,42858.0,0.116624]
[1642250361602,0.33132294,42862.0,42854.0,0.55395072]
[1642250362002,0.40006658,42866.0,42854.0,0.55395072]
[1642250362202,0.15831982,42866.0,42862.0,0.25197543]
[1642250362402,0.376178,42865.0,42862.0,0.25197543]
[1642250362664,0.476178,42865.0,42862.0,0.25197543]
[1642250364357,0.1,42865.0,42862.0,0.25197543]
[1642250364558,0.23088077,42869.0,42862.0,0.25197543]
[1642250364859,0.434499,42868.0,42862.0,0.25197543]
[1642250365057,0.476178,42868.0,42862.0,0.25197543]
[1642250365258,0.06126695,42874.0,42862.0,0.25197543]
[1642250365460,0.5514099,42870.0,42862.0,0.25197543]
[1642250365863,0.33420159,42867.0,42862.0,0.25197543]
[1642250366058,0.55049977,42866.0,42862.0,0.25197543]
[1642250366312,0.376178,42866.0,42862.0,0.25197543]
[1642250366513,1.006917,42877.0,42862.0,0.25197543]
[1642250366714,0.55928524,42870.0,42862.0,0.25197543]
[1642250367114,0.376178,42870.0,42862.0,0.20727543]
[1642250367314,0.55439415,42870.0,42862.0,0.20727543]
[1642250367716,0.3233118,42866.0,42862.0,0.20727543]
[1642250368017,0.1,42866.0,42862.0,0.20727543]
[1642250368817,0.3447127,42866.0,42862.0,0.20727543]
[1642250369015,0.3447127,42866.0,42862.0,0.20407812]
[1642250369216,0.2447127,42866.0,42862.0,0.20407812]
[1642250369415,0.1,42866.0,42862.0,0.20407812]
[1642250370457,0.29930989,42866.0,42862.0,0.20407812]
[1642250370751,0.15831531,42870.0,42862.0,0.20407812]
[1642250370955,0.376178,42869.0,42862.0,0.20407812]
[1642250371152,0.1,42869.0,42862.0,0.20407812]
[1642250371751,0.2463629,42867.0,42862.0,0.20407812]
[1642250372153,0.17144351,42866.0,42862.0,0.15937812]
[1642250372654,0.2463629,42867.0,42862.0,0.15937812]
[1642250372854,2.06354414,42871.0,42862.0,0.15937812]
[1642250373055,0.65315049,42870.0,42862.0,0.15937812]
[1642250373653,0.27697249,42870.0,42862.0,0.15937812]
[1642250373906,0.25023202,42867.0,42863.0,0.058311]
[1642250374105,0.25023202,42867.0,42862.0,0.15937812]
[1642250374312,0.25023202,42867.0,42857.0,0.00128872]
[1642250374313,0.55276794,42866.0,42857.0,0.00128872]
[1642250374506,0.17658994,42866.0,42857.0,0.00128872]
[1642250374707,0.27658994,42866.0,42857.0,0.00128872]
[1642250375309,0.39251933,42864.0,42857.0,0.00128872]
[1642250375507,0.05832023,42865.0,42857.0,0.00128872]
[1642250375908,0.35023202,42867.0,42859.0,0.28112065]
[1642250376109,0.00127604,42869.0,42859.0,0.28112065]
[1642250376307,0.1,42867.0,42857.0,0.2039834]
[1642250376508,0.05831784,42867.0,42858.0,0.058318]
[1642250376707,0.05831784,42867.0,42857.0,0.00128872]
[1642250377011,0.46104853,42868.0,42857.0,0.18477105]
[1642250377207,0.30255914,42865.0,42863.0,0.24697918]
[1642250377407,0.46104853,42868.0,42863.0,0.24697918]
[1642250377408,0.1,42868.0,42863.0,0.24697918]
[1642250377655,0.376178,42867.0,42863.0,0.24697918]
[1642250378160,0.5344969,42867.0,42858.0,0.058318]
[1642250378355,0.1583189,42867.0,42858.0,0.058318]
[1642250378556,0.1,42867.0,42858.0,0.053318]
[1642250379156,0.15831678,42868.0,42864.0,0.25711027]
[1642250379358,0.06127604,42869.0,42864.0,0.25711027]
[1642250379660,0.06,42869.0,42864.0,0.25711027]
[1642250380058,0.376178,42868.0,42864.0,0.25711027]
[1642250380459,0.7484564,42868.0,42864.0,0.25711027]
[1642250381059,0.376178,42868.0,42864.0,0.25711027]
[1642250381309,0.376178,42868.0,42859.0,0.00124058]
[1642250381507,0.17663357,42869.0,42859.0,0.00124058]
[1642250382306,0.29838735,42864.0,42856.0,0.39522609]
[1642250382609,0.29838735,42864.0,42860.0,0.30281342]
[1642250383010,0.27663357,42869.0,42860.0,0.30281342]
[1642250383308,0.4474337,42869.0,42860.0,0.30281342]
[1642250383508,0.27663357,42869.0,42860.0,0.30281342]
[1642250384009,0.31286693,42868.0,42860.0,0.30281342]
[1642250384609,0.31286693,42868.0,42860.0,0.36112742]
[1642250385058,0.31286693,42868.0,42860.0,0.30281342]
[1642250385858,0.05831815,42867.0,42860.0,0.30281342]
[1642250386859,0.31286693,42868.0,42860.0,0.30281342]
[1642250387158,0.31286693,42868.0,42860.0,0.25821342]
[1642250387658,0.05831477,42869.0,42860.0,0.31652742]
[1642250387858,0.3998,42870.0,42860.0,0.31652742]
[1642250388059,0.05831538,42869.0,42860.0,0.31652742]
[1642250388259,0.058318,42869.0,42860.0,0.25821342]
[1642250388462,0.33874621,42867.0,42860.0,0.25821342]
[1642250388660,0.43874621,42867.0,42860.0,0.25821342]
[1642250389305,0.49706379,42867.0,42860.0,0.25821342]
[1642250390808,0.35811443,42870.0,42861.0,0.18417391]
[1642250391009,0.2998,42870.0,42861.0,0.18417391]
[1642250391209,0.3998,42870.0,42860.0,0.25821342]
[1642250391408,0.3998,42870.0,42861.0,0.18155838]
[1642250391613,0.3998,42870.0,42867.0,0.30041389]
[1642250391808,0.1,42870.0,42867.0,0.30041389]
[1642250392011,2.06354414,42871.0,42867.0,0.30041389]
[1642250392207,2.06354414,42871.0,42867.0,0.25571389]
[1642250392409,0.376178,42870.0,42859.0,0.116618]
[1642250392657,2.06354414,42871.0,42859.0,0.116618]
[1642250393059,2.12186114,42871.0,42859.0,0.116618]
[1642250393257,0.05831563,42869.0,42858.0,0.058317]
[1642250393457,0.05831563,42869.0,42858.0,0.37875269]
[1642250394057,0.058319,42868.0,42858.0,0.32043569]
[1642250394261,0.29307318,42864.0,42858.0,0.32043569]
[1642250394659,0.05832032,42865.0,42858.0,0.50603621]
[1642250394958,0.2952,42869.0,42858.0,0.50603621]
[1642250395258,0.2952,42869.0,42861.0,0.59860806]
[1642250395458,2.16354414,42871.0,42861.0,0.59860806]
[1642250395660,0.15587909,42870.0,42861.0,0.59860806]
[1642250395863,2.84792554,42862.0,42861.0,0.59860806]
[1642250396061,3.32410354,42862.0,42860.0,0.69837608]
[1642250396310,2.32740161,42861.0,42860.0,0.69837608]
[1642250396713,2.42740161,42861.0,42860.0,0.69837608]
[1642250396919,2.42740161,42861.0,42854.0,0.80673657]
[1642250396920,2.55,42859.0,42854.0,0.80673657]
[1642250397113,0.06126828,42857.0,42855.0,0.26474449]
[1642250397311,3.11864814,42856.0,42855.0,0.21984449]
[1642250397711,2.61,42855.0,42849.0,0.79740457]
[1642250397910,0.00122467,42850.0,42849.0,0.79740457]
[1642250398111,2.92740267,42850.0,42849.0,0.79740457]
[1642250398513,3.02740267,42850.0,42843.0,0.89708014]
[1642250398712,0.05834693,42847.0,42842.0,0.79740457]
[1642250398912,0.05835,42845.0,42842.0,0.78740457]
[1642250399114,2.39356171,42845.0,42842.0,0.78740457]
[1642250399314,1.78892864,42843.0,42842.0,0.78740457]
[1642250399618,2.26510664,42843.0,42842.0,0.78740457]
[1642250399819,2.26510664,42843.0,42836.0,0.89708014]
[1642250399820,0.058369,42841.0,42836.0,0.89708014]
[1642250400060,0.02501114,42837.0,42832.0,0.16030491]
[1642250400258,0.376178,42836.0,42832.0,0.16030491]
[1642250400461,0.32076871,42835.0,42832.0,0.16030491]
[1642250400763,0.376178,42834.0,42832.0,0.16030491]
[1642250400957,0.42076871,42835.0,42832.0,0.15530491]
[1642250400958,0.537499,42835.0,42832.0,0.15530491]
[1642250401158,0.21673029,42835.0,42832.0,0.15530491]
[1642250401562,0.19247014,42834.0,42832.0,0.15530491]
[1642250401761,0.00127801,42833.0,42825.0,0.03136309]
[1642250401961,0.05837693,42829.0,42825.0,0.03136309]
[1642250402163,0.05837693,42829.0,42825.0,0.02636309]
[1642250402361,0.32916863,42828.0,42824.0,0.87874323]
[1642250402562,0.00125623,42825.0,42824.0,0.87874323]
[1642250402863,2.89140423,42825.0,42824.0,0.87874323]
[1642250403060,2.99140423,42825.0,42824.0,0.87874323]
[1642250403261,2.99140423,42825.0,42819.0,0.01245904]
[1642250403262,3.56971281,42825.0,42819.0,0.01245904]
[1642250403461,1.16940825,42825.0,42819.0,0.01245904]
[1642250403662,0.87948114,42825.0,42819.0,0.01245904]
[1642250403916,0.29504239,42825.0,42819.0,0.01245904]
[1642250404118,0.23,42825.0,42819.0,0.01245904]
[1642250404319,0.23,42825.0,42819.0,0.01185904]
[1642250404723,0.23,42825.0,42822.0,0.33474885]
[1642250404920,0.23,42825.0,42823.0,0.69905455]
[1642250405918,0.23,42825.0,42822.0,0.33474885]
[1642250406520,0.23,42825.0,42820.0,0.00010314]
[1642250407425,0.23,42825.0,42815.0,0.2912633]
[1642250407663,0.23,42825.0,42816.0,0.20424009]
[1642250407862,0.23,42825.0,42817.0,0.058371]
[1642250408259,0.23,42825.0,42817.0,0.31088137]
[1642250408459,0.23,42825.0,42817.0,0.058371]
[1642250409261,0.19507336,42824.0,42817.0,0.057371]
[1642250409462,0.19507336,42824.0,42816.0,0.90817461]
[1642250409965,0.25344689,42824.0,42816.0,0.90817461]
[1642250410161,0.05837353,42824.0,42816.0,0.90817461]
[1642250410362,0.00127048,42822.0,42816.0,0.90817461]
[1642250410564,0.22214048,42825.0,42816.0,0.90817461]
[1642250410763,0.32214048,42825.0,42816.0,0.90817461]
[1642250410962,0.32214048,42825.0,42816.0,0.00940876]
[1642250411163,0.32490796,42823.0,42816.0,0.00940876]
[1642250411608,0.42490796,42823.0,42816.0,0.00940876]
[1642250412008,0.18014953,42822.0,42816.0,0.00940876]
[1642250412209,0.00121576,42822.0,42816.0,0.00940876]
[1642250412410,0.00121576,42822.0,42811.0,0.86681245]
[1642250412615,0.83459818,42823.0,42812.0,0.24415557]
[1642250412809,0.83049364,42823.0,42812.0,6.876e-05]
[1642250413010,0.18450866,42822.0,42812.0,6.876e-05]
[1642250413410,0.11675962,42821.0,42812.0,6.876e-05]
[1642250413610,0.0012644,42822.0,42811.0,0.92025921]
[1642250413809,0.0012644,42822.0,42811.0,0.058378]
[1642250414210,0.16435378,42822.0,42811.0,0.058378]
[1642250414612,0.00126067,42820.0,42810.0,0.009339]
[1642250414810,0.376178,42819.0,42810.0,0.009339]
[1642250415062,0.00121944,42811.0,42810.0,0.009339]
[1642250415264,1.72915714,42811.0,42810.0,0.009339]
[1642250415459,2.52300094,42811.0,42810.0,0.009339]
[1642250415665,2.52300094,42811.0,42803.0,0.0022]
[1642250415666,2.4,42809.0,42803.0,0.0022]
[1642250415865,2.55,42807.0,42800.0,0.23666455]
[1642250416061,0.376178,42803.0,42800.0,0.23666455]
[1642250416262,2.65,42807.0,42795.0,0.0003]
[1642250416263,2.55,42800.0,42795.0,0.0003]
[1642250416463,0.73113498,42799.0,42792.0,0.99785571]
[1642250416663,0.73113498,42799.0,42779.0,1.0952229]
[1642250416664,2.55,42797.0,42779.0,1.0952229]
[1642250416864,0.00127367,42786.0,42779.0,1.0952229]
[1642250417062,0.10489367,42786.0,42779.0,1.08091585]
[1642250417561,0.10489367,42786.0,42774.0,0.29795681]
[1642250417562,0.34477957,42782.0,42774.0,0.29795681]
[1642250417765,0.34477957,42782.0,42777.0,0.95908607]
[1642250417962,0.45,42786.0,42777.0,0.95908607]
[1642250418162,0.45,42786.0,42778.0,0.19441916]
[1642250418360,0.45,42786.0,42778.0,0.20000067]
[1642250418561,0.00124586,42795.0,42778.0,0.20000067]
[1642250418562,0.9564,42796.0,42785.0,0.00127067]
[1642250418832,0.116833,42801.0,42785.0,0.00127067]
[1642250419025,1.029833,42806.0,42795.0,0.41711686]
[1642250419224,1.029833,42806.0,42786.0,0.34469803]
[1642250419225,0.57650806,42803.0,42791.0,0.00127614]
[1642250419825,0.28054237,42800.0,42791.0,0.33177459]
[1642250420024,0.57650806,42803.0,42799.0,0.28416881]
[1642250420434,0.45,42811.0,42800.0,0.00126688]
[1642250420830,0.45,42811.0,42800.0,0.10126688]
[1642250421031,0.30898699,42811.0,42801.0,0.30054682]
[1642250421224,0.19441916,42813.0,42806.0,0.29431698]
[1642250421424,0.19441916,42814.0,42806.0,0.29431698]
[1642250421923,0.0005351,42815.0,42806.0,0.29431698]
[1642250422124,0.0005351,42815.0,42804.0,0.49851012]
[1642250422324,0.0005351,42815.0,42807.0,0.058383]
[1642250422563,0.0005351,42815.0,42807.0,0.013683]
[1642250422863,0.0005351,42815.0,42807.0,0.012363]
[1642250423069,0.0005351,42815.0,42811.0,0.4324964]
[1642250423462,0.0005351,42815.0,42810.0,0.0012002]
[1642250424365,2.49688228,42815.0,42810.0,0.0012002]
[1642250424562,2.49688228,42815.0,42806.0,0.31826674]
[1642250424763,0.33020943,42815.0,42806.0,0.37665074]
[1642250425365,0.33020943,42815.0,42812.0,0.59938665]
[1642250425567,0.33020943,42815.0,42812.0,0.59872665]
[1642250425863,0.0005351,42815.0,42812.0,0.59872665]
[1642250426065,0.0005351,42815.0,42813.0,0.87788584]
[1642250426504,0.2305351,42815.0,42813.0,0.87788584]
[1642250426705,0.2305351,42815.0,42814.0,0.013127]
[1642250427105,0.2305351,42815.0,42813.0,0.27915919]
[1642250427306,0.2305351,42815.0,42813.0,0.64480657]
[1642250427506,0.2305351,42815.0,42814.0,0.013104]
[1642250428309,0.2305351,42815.0,42814.0,0.071479]
[1642250428711,0.2305351,42815.0,42814.0,0.13178044]
[1642250428910,0.2305351,42815.0,42814.0,1.78178044]
[1642250429110,0.2305351,42815.0,42814.0,0.061479]
[1642250429711,0.2305351,42815.0,42814.0,0.12754591]
[1642250429910,0.2305351,42815.0,42814.0,1.32754591]
[1642250430170,0.2305351,42815.0,42814.0,1.42754591]
[1642250430374,0.2305351,42815.0,42814.0,1.42764591]
[1642250430572,0.2305351,42815.0,42814.0,1.52885819]
[1642250430778,0.2305351,42815.0,42814.0,2.07885819]
[1642250430972,0.2305351,42815.0,42814.0,1.97885819]
[1642250431573,0.17636292,42832.0,42828.0,0.29503912]
[1642250431771,0.90893415,42836.0,42828.0,0.29503912]
[1642250431971,0.66812704,42839.0,42828.0,0.29503912]
[1642250432172,0.1,42836.0,42828.0,0.29503912]
[1642250432371,0.66812704,42838.0,42828.0,0.29503912]
[1642250432573,0.44629465,42833.0,42827.0,0.00124947]
[1642250433374,1.60986334,42831.0,42827.0,0.00124947]
[1642250434117,0.44629465,42833.0,42827.0,0.00124947]
[1642250434518,0.25248685,42835.0,42827.0,0.00124947]
[1642250435519,0.25248685,42835.0,42827.0,0.60045345]
[1642250435922,0.23,42835.0,42829.0,0.33823578]
[1642250437220,0.23,42835.0,42833.0,0.33241419]
[1642250437660,0.00030077,42834.0,42833.0,0.28741419]
[1642250439260,0.00030077,42834.0,42833.0,0.48230592]
[1642250439458,0.00030077,42834.0,42833.0,0.28741419]
[1642250439757,0.00030077,42834.0,42833.0,1.44461282]
[1642250440160,0.00030077,42834.0,42833.0,1.44583108]
[1642250440860,0.00030077,42834.0,42833.0,0.54583108]
[1642250441063,0.00030077,42834.0,42833.0,1.11190739]
[1642250441318,0.00030077,42834.0,42833.0,0.91305976]
[1642250442112,0.00030077,42834.0,42833.0,1.61202683]
[1642250442511,0.00030077,42834.0,42833.0,1.56722683]
[1642250442710,0.00030077,42834.0,42833.0,1.60115052]
[1642250443009,0.00030077,42834.0,42833.0,1.00115052]
[1642250443209,0.00030077,42834.0,42833.0,0.30218345]
[1642250443412,0.00030077,42834.0,42833.0,0.86825976]
[1642250443811,0.00030077,42834.0,42833.0,0.86950734]
[1642250447565,1.55030077,42834.0,42833.0,1.52366644]
[1642250447767,1.55030077,42834.0,42833.0,1.26503541]
[1642250447966,1.65030077,42834.0,42833.0,1.26503541]
[1642250448166,2.02648877,42834.0,42833.0,1.26503541]
[1642250448564,2.92648877,42834.0,42833.0,1.26503541]
[1642250448813,2.92648877,42834.0,42833.0,0.6989591]
[1642250449213,2.92648877,42834.0,42828.0,0.59919679]
[1642250449214,3.02771892,42834.0,42828.0,0.59919679]
[1642250449409,0.57157724,42833.0,42828.0,0.59919679]
[1642250449608,0.67157724,42833.0,42828.0,0.59919679]
[1642250450111,2.55,42828.0,42820.0,0.7989612]
[1642250450410,0.00126851,42821.0,42820.0,0.7989612]
[1642250450610,0.03283851,42821.0,42820.0,0.7989612]
[1642250450810,0.03283851,42821.0,42816.0,0.54237602]
[1642250451010,2.2524808,42817.0,42816.0,0.54237602]
[1642250451211,0.61797486,42817.0,42816.0,0.54237602]
[1642250451417,0.71797486,42817.0,42816.0,0.54237602]
[1642250451610,1.96797486,42817.0,42816.0,0.54237602]
[1642250451811,1.96926681,42817.0,42816.0,0.54237602]
[1642250452011,1.96926681,42817.0,42814.0,0.0001]
[1642250452211,0.376188,42816.0,42814.0,0.0001]
[1642250452412,1.3923052,42815.0,42814.0,0.0001]
[1642250452660,0.058393,42813.0,42805.0,0.49787602]
[1642250453064,0.058393,42813.0,42806.0,0.25298413]
[1642250453264,0.11678539,42813.0,42806.0,0.25298413]
[1642250453564,2.06051648,42814.0,42806.0,0.25298413]
[1642250453565,0.18856113,42812.0,42806.0,0.25298413]
[1642250454163,0.5,42807.0,42806.0,0.25298413]
[1642250454561,1.55840199,42807.0,42806.0,0.25298413]
[1642250454771,1.55840199,42807.0,42799.0,0.7989612]
[1642250454772,1.68198199,42807.0,42799.0,0.7989612]
[1642250454965,0.19954611,42806.0,42799.0,0.7989612]
[1642250455164,0.00121017,42800.0,42799.0,0.7989612]
[1642250455567,0.05962715,42800.0,42799.0,0.7989612]
[1642250455763,0.05962715,42800.0,42799.0,0.6990612]
[1642250455965,3.0363314,42800.0,42799.0,0.5991612]
[1642250456165,3.1363314,42800.0,42792.0,0.85934773]
[1642250456433,0.00127548,42794.0,42792.0,0.5991612]
[1642250456835,2.17300873,42793.0,42792.0,0.5991612]
[1642250457033,3.10077105,42793.0,42792.0,0.5991612]
[1642250457233,3.10077105,42793.0,42790.0,0.0021]
[1642250457534,2.0,42791.0,42786.0,0.26283074]
[1642250457735,0.3762,42790.0,42786.0,0.26283074]
[1642250458133,0.4762,42790.0,42786.0,0.26283074]
[1642250458834,0.19771842,42799.0,42786.0,0.26411361]
[1642250459033,0.00127164,42802.0,42786.0,0.26411361]
[1642250459238,0.3762,42801.0,42786.0,0.26283074]
[1642250459436,0.058416,42798.0,42793.0,0.28537213]
[1642250459635,0.99176095,42797.0,42785.0,0.001]
[1642250459834,1.35,42795.0,42783.0,0.0003]
[1642250460088,0.1,42795.0,42783.0,0.0003]
[1642250460283,0.19771842,42795.0,42783.0,0.0003]
[1642250460686,0.058422,42794.0,42789.0,0.3186728]
[1642250461289,0.00127164,42802.0,42789.0,0.3186728]
[1642250461487,0.3762,42801.0,42789.0,0.3186728]
[1642250461685,0.19771842,42800.0,42789.0,0.3186728]
[1642250461890,0.00127164,42802.0,42789.0,0.3186728]
[1642250462089,0.3762,42801.0,42789.0,0.3186728]
[1642250462287,0.2884569,42797.0,42789.0,0.3186728]
[1642250462487,0.41506805,42802.0,42789.0,0.058411]
[1642250462686,0.3762,42801.0,42787.0,0.00120624]
[1642250462886,0.41506805,42802.0,42787.0,0.00120624]
[1642250463287,0.19771842,42801.0,42787.0,0.00120624]
[1642250463486,0.51506805,42802.0,42790.0,0.79942371]
[1642250463687,0.24457127,42798.0,42790.0,0.79942371]
[1642250464315,0.00127164,42802.0,42790.0,0.79942371]
[1642250464514,0.00607064,42804.0,42790.0,0.79942371]
[1642250464515,0.18815865,42804.0,42790.0,0.79942371]
[1642250464713,0.18815865,42804.0,42793.0,0.33539735]
[1642250464910,0.18815865,42804.0,42790.0,0.85783371]
[1642250465310,0.26887377,42798.0,42790.0,0.85783371]
[1642250465711,0.18815865,42804.0,42799.0,0.59955963]
[1642250465913,0.00607064,42804.0,42799.0,0.59955963]
[1642250466711,0.34012853,42801.0,42799.0,0.59955963]
[1642250467117,0.34012853,42801.0,42800.0,0.59955963]
[1642250467565,0.00607064,42804.0,42800.0,0.55485963]
[1642250468067,0.19664064,42811.0,42800.0,0.55485963]
[1642250468371,0.19664064,42813.0,42800.0,0.058396]
[1642250468567,0.34231468,42812.0,42805.0,0.32644675]
[1642250468767,0.19664064,42813.0,42805.0,0.67208693]
[1642250469067,0.66730098,42815.0,42806.0,0.04086828]
[1642250469068,0.0012947,42815.0,42806.0,0.04086828]
[1642250469266,0.0012947,42815.0,42805.0,0.67208693]
[1642250469467,0.0012947,42815.0,42806.0,0.058389]
[1642250469868,0.0012947,42815.0,42805.0,0.32644675]
[1642250470069,0.57284064,42813.0,42805.0,0.32644675]
[1642250470269,0.57284064,42813.0,42799.0,0.69948623]
[1642250470471,0.57284064,42813.0,42807.0,0.69948623]
[1642250470472,0.19664064,42812.0,42807.0,0.69948623]
[1642250470669,0.3762,42811.0,42807.0,0.69948623]
[1642250471339,0.4762,42811.0,42805.0,0.69948623]
[1642250471533,0.80611297,42811.0,42805.0,0.69948623]
[1642250471935,0.19664064,42810.0,42805.0,0.69948623]
[1642250472241,2.60963555,42806.0,42805.0,0.69948623]
[1642250472434,2.92742155,42806.0,42805.0,0.69948623]
[1642250472634,3.02742155,42806.0,42805.0,0.80296996]
[1642250473434,3.02742155,42806.0,42799.0,0.79942371]
[1642250473435,0.47742155,42806.0,42799.0,0.79942371]
[1642250473738,0.32711062,42803.0,42796.0,0.34317328]
[1642250474134,0.42711062,42803.0,42796.0,0.34317328]
[1642250474334,0.42711062,42803.0,42800.0,0.14838373]
[1642250474536,0.1,42803.0,42800.0,0.14838373]
[1642250474937,0.18907738,42808.0,42800.0,0.14838373]
[1642250475168,0.3762,42807.0,42797.0,0.14838373]
[1642250475571,0.058406,42805.0,42797.0,0.14838373]
[1642250475767,0.058406,42805.0,42796.0,0.34317328]
[1642250476168,0.17742314,42804.0,42796.0,0.34317328]
[1642250476366,0.1,42807.0,42796.0,0.34317328]
[1642250476566,0.18753684,42808.0,42801.0,0.59958859]
[1642250476766,0.058405,42806.0,42801.0,0.59958859]
[1642250477165,0.288405,42806.0,42801.0,0.59958859]
[1642250477667,0.23,42806.0,42801.0,0.55498859]
[1642250477868,0.23,42806.0,42803.0,0.41807028]
[1642250478268,0.23,42806.0,42803.0,0.97305887]
[1642250478819,0.23,42806.0,42805.0,0.24816768]
[1642250480022,0.23,42806.0,42805.0,1.48118429]
[1642250480220,0.23,42806.0,42805.0,1.98118429]
[1642250480418,0.23,42806.0,42805.0,1.48118429]
[1642250480718,0.21347118,42806.0,42805.0,1.48118429]
[1642250481320,0.21347118,42806.0,42805.0,2.280608]
[1642250481520,1.69367421,42813.0,42807.0,0.058387]
[1642250482121,1.69367421,42813.0,42812.0,0.27210904]
[1642250482564,1.69367421,42813.0,42812.0,0.67242077]
[1642250482766,1.69367421,42813.0,42812.0,0.40031173]
[1642250483264,1.69367421,42813.0,42812.0,1.29401724]
[1642250483665,1.69367421,42813.0,42812.0,1.63334719]
[1642250484266,0.2955,42822.0,42812.0,1.72559719]
[1642250484468,0.9376,42825.0,42814.0,0.058377]
[1642250484668,0.2908,42826.0,42814.0,0.058377]
[1642250484866,0.66837827,42830.0,42815.0,0.19539072]
[1642250485069,0.66837827,42830.0,42827.0,0.28893514]
[1642250485267,0.66837827,42830.0,42828.0,0.4517384]
[1642250485466,0.66837827,42830.0,42827.0,0.1002425]
[1642250485865,0.3762,42829.0,42827.0,0.1002425]
[1642250486066,0.3762,42829.0,42827.0,0.09896]
[1642250486316,0.3762,42829.0,42823.0,0.69919551]
[1642250486516,0.1,42829.0,42823.0,0.69919551]
[1642250486716,0.23,42830.0,42823.0,0.69919551]
[1642250487219,0.3762,42829.0,42823.0,0.69919551]
[1642250487415,0.23,42830.0,42823.0,0.69919551]
[1642250487621,0.23,42830.0,42825.0,0.55459682]
[1642250487622,0.57159072,42829.0,42825.0,0.55459682]
[1642250487816,0.3762,42829.0,42825.0,0.55459682]
[1642250488014,0.23,42830.0,42825.0,0.55459682]
[1642250488415,0.23,42830.0,42824.0,0.69919551]
[1642250488617,0.23,42830.0,42822.0,1.00987012]
[1642250488818,0.23,42830.0,42822.0,1.06823712]
[1642250489617,0.23,42830.0,42829.0,0.02828076]
[1642250489817,0.23,42830.0,42829.0,0.49974743]
[1642250490771,0.23,42830.0,42829.0,0.83454135]
[1642250491073,0.23,42830.0,42829.0,0.71936659]
[1642250491869,0.23,42830.0,42829.0,0.90726063]
[1642250492071,0.23,42830.0,42829.0,0.96561363]
[1642250492872,0.23,42830.0,42829.0,0.92081363]
[1642250494009,0.23,42830.0,42829.0,2.54719334]
[1642250494609,0.23,42830.0,42829.0,2.3592993]
[1642250495212,0.23,42830.0,42829.0,2.3009463]
[1642250496213,0.23,42830.0,42829.0,2.3592973]
[1642250497014,0.23,42830.0,42829.0,3.31054152]
[1642250497218,0.23,42830.0,42829.0,4.01099152]
[1642250497665,0.23,42830.0,42829.0,4.06639152]
[1642250497864,0.23,42830.0,42829.0,4.16767174]
[1642250498068,0.23,42830.0,42829.0,3.46847623]
[1642250498265,0.0005351,42849.0,42836.0,0.058338]
[1642250498266,2.2038487,42842.0,42836.0,0.058338]
[1642250498467,1.5512,42848.0,42837.0,0.058339]
[1642250498665,0.3029592,42845.0,42837.0,0.058339]
[1642250498864,0.3029592,42845.0,42837.0,0.24985122]
[1642250499067,0.3029592,42845.0,42835.0,0.00125888]
[1642250499267,0.3029592,42845.0,42829.0,0.70174066]
[1642250499268,0.19512798,42836.0,42829.0,0.70174066]
[1642250499470,0.00126143,42826.0,42822.0,0.89164079]
[1642250499767,0.16778992,42825.0,42822.0,0.89164079]
[1642250499965,0.48812356,42825.0,42822.0,0.89164079]
[1642250500164,0.42533364,42825.0,42824.0,0.36073673]
[1642250500367,0.00126143,42826.0,42824.0,0.36073673]
[1642250500565,0.095,42825.0,42824.0,0.36073673]
[1642250501621,0.00126143,42826.0,42824.0,0.36073673]
[1642250501820,0.33650835,42830.0,42824.0,0.36073673]
[1642250502319,0.43650835,42830.0,42824.0,0.36073673]
[1642250502523,0.3762,42829.0,42824.0,0.36073673]
[1642250502722,0.3762,42829.0,42824.0,0.31593673]
[1642250503020,0.5345745,42829.0,42824.0,0.31593673]